Workbook

Sheet Superpesis
B1: Jenna Kammi-Rahnasto | F1: 18.7.1990 Ilmajoki
B2: SUPERPESIS | E2: Runkosarja | I2: Kärkilyönnit (KL), pesänvälit | Q2: Runkosarja | U2: Ylempi loppusarja | Z2: Alempi loppusarja | AG2: Arvo-ottelut ja mitalit
B3: Vuosi | C3: Sija | D3: Seura | E3: OTT | F3: KUN | G3: LÖI | H3: TOI | I3: KL | J3: 0 > 1 | K3: 1 > 2 | L3: 2 > 3 | M3: 3 > k | N3: KL-% | P3: LÖI | Q3: TOI | R3: L+T | S3: KL | U3: OTT | V3: KUN | W3: LÖI | X3: TOI | Y3: KL | Z3: OTT | AA3: KUN | AB3: LÖI | AC3: TOI | AD3: KL | AE3: IL | AF3: LL | AG3: Halli | AH3: K | AI3: H | AJ3: P
B4: 2007 | D4: IK | F4: suomensarja
B5: 2008 | D5: IK | F5: ykköspesis
B6: 2009 | D6: IK | F6: ykköspesis
B7: 2010 | C7: 7. | D7: Fera | E7: 24 | F7: 0 | G7: 4 | H7: 6 | I7: 48 | J7: 24 | K7: 14 | L7: 6 | M7: 4 | N7: 40.0 % | O7: =PRODUCT(I7/N7) -> 120 | U7: 3 | V7: 0 | W7: 0 | X7: 0 | Y7: 6
B8: 2011 | C8: 7. | D8: Lukko | E8: 22 | F8: 0 | G8: 5 | H8: 6 | I8: 50 | J8: 23 | K8: 11 | L8: 11 | M8: 5 | N8: 45.9 % | O8: 108.9324619 | U8: 3 | V8: 0 | W8: 0 | X8: 1 | Y8: 3
B9: 2012 | C9: 1. | D9: Virkiä | E9: 22 | F9: 0 | G9: 14 | H9: 2 | I9: 68 | J9: 31 | K9: 8 | L9: 15 | M9: 14 | N9: 52.3 % | O9: 130.0191205 | U9: 15 | V9: 0 | W9: 1 | X9: 1 | Y9: 37 | AG9: 1 | AH9: 1
B10: 2013 | C10: 1. | D10: Virkiä | E10: 24 | F10: 0 | G10: 3 | H10: 5 | I10: 63 | J10: 45 | K10: 7 | L10: 8 | M10: 3 | N10: 52.1 % | O10: 121.0142144 | T10: =PRODUCT(L10/S10) ->  | U10: 9 | V10: 0 | W10: 1 | X10: 3 | Y10: 17 | AG10: 1 | AH10: 1
B11: 2014 | C11: 1. | D11: Virkiä | E11: 23 | F11: 0 | G11: 5 | H11: 3 | I11: 50 | J11: 38 | K11: 5 | L11: 2 | M11: 5 | N11: 43.1 % | O11: 116.0092807 | U11: 11 | V11: 0 | W11: 3 | X11: 2 | Y11: 37 | AE11: 1 | AF11: 1 | AG11: 1 | AH11: 1
B12: 2015 | C12: 3. | D12: Lukko | E12: 24 | F12: 2 | G12: 10 | H12: 3 | I12: 62 | J12: 22 | K12: 11 | L12: 17 | M12: 12 | N12: 50.8 % | O12: 122 | U12: 9 | V12: 0 | W12: 0 | X12: 0 | Y12: 18 | AE12: 1 | AJ12: 1
B13: 2016 | C13: 4. | D13: Lukko | E13: 22 | F13: 0 | G13: 18 | H13: 6 | I13: 67 | J13: 23 | K13: 12 | L13: 14 | M13: 18 | N13: 55.4 % | O13: 121 | U13: 9 | V13: 0 | W13: 8 | X13: 2 | Y13: 28 | AE13: 1
B14: 2017 | C14: 6. | D14: Lukko | E14: 26 | F14: 0 | G14: 10 | H14: 9 | I14: 68 | J14: 34 | K14: 17 | L14: 7 | M14: 10 | N14: 51.9 % | O14: 131 | U14: 3 | V14: 0 | W14: 0 | X14: 1 | Y14: 6 | AE14: 1
B15: 2018 | C15: 4. | D15: Virkiä | E15: 26 | F15: 0 | G15: 10 | H15: 2 | I15: 65 | J15: 34 | K15: 10 | L15: 11 | M15: 10 | N15: 56.5 % | O15: 115 | T15: =PRODUCT(L15/S15) ->  | U15: 10 | V15: 0 | W15: 1 | X15: 0 | Y15: 14 | AE15: 1
B16: 2019 | C16: 3. | D16: Virkiä | E16: 23 | F16: 0 | G16: 15 | H16: 4 | I16: 47 | J16: 20 | K16: 4 | L16: 8 | M16: 15 | N16: 43.5 % | O16: 108 | U16: 8 | V16: 0 | W16: 0 | X16: 0 | Y16: 26 | AE16: 1 | AJ16: 1
B17: Yhteensä | E17: =SUM(E6:E16) -> 236 | F17: 2 | G17: 94 | H17: 46 | I17: 588 | J17: 294 | K17: 99 | L17: 99 | M17: 96 | N17: =PRODUCT(I17/O17) -> 49.3 % | O17: =SUM(O7:O16) -> 1192.975077 | U17: =SUM(U6:U16) -> 80 | V17: 0 | W17: 14 | X17: 10 | Y17: 192 | Z17: 0 | AA17: 0 | AB17: 0 | AC17: 0 | AD17: 0 | AE17: 6 | AF17: 1 | AG17: 3 | AH17: 3 | AI17: 0 | AJ17: 2
B18: Pesispörssi | D18: =SUM(F17:H17)+((I17-F17-G17)/3)+(E17/3)+(AE17*25)+(AF17*25)+(AG17*10)+(AH17*25)+(AI17*20)+(AJ17*15) -> 694.7
B20: URA SUPERISSA | E20: OTT | F20: KUN | G20: LÖI | H20: TOI | I20: KL | K20: ka/L | L20: ka/T | M20: ka/KL | N20: KL-% | P20: ENSIMMÄISET
B21: Runkosarja | E21: =PRODUCT(E17) -> 236 | F21: =PRODUCT(F17) -> 2 | G21: =PRODUCT(G17) -> 94 | H21: =PRODUCT(H17) -> 46 | I21: =PRODUCT(I17) -> 588 | K21: =PRODUCT((F21+G21)/E21) -> 0.41 | L21: =PRODUCT(H21/E21) -> 0.19 | M21: =PRODUCT(I21/E21) -> 2.49 | N21: =PRODUCT(N17) -> 49.3 % | O21: =PRODUCT(O17) -> 1192.975077 | P21: Ottelu | R21: 13.05. 2010 Pesä Ysit - Fera 2-1 (1-0, 3-6, 1-0) | AB21: 1. ottelu | AE21: 19 v 9 kk 25 pv
B22: Ylempi loppusarja | E22: =SUM(U17) -> 80 | F22: =SUM(V17) -> 0 | G22: =SUM(W17) -> 14 | H22: =SUM(X17) -> 10 | I22: =SUM(Y17) -> 192 | K22: =PRODUCT((F22+G22)/E22) -> 0.18 | L22: =PRODUCT(H22/E22) -> 0.13 | M22: =PRODUCT(I22/E22) -> 2.40 | N22: =PRODUCT(I22/O22) -> 47.2 % | O22: 407 | P22: Lyöty | R22: 13.05. 2010 Pesä Ysit - Fera 2-1 (1-0, 3-6, 1-0) | AB22: 1. ottelu | AE22: 19 v 9 kk 25 pv
B23: Alempi loppusarja | P23: Tuotu | R23: 16.05. 2010 Fera - Lipottaret 2-0 (6-0, 6-0) | AB23: 2. ottelu | AE23: 19 v 9 kk 28 pv
B24: KAIKKI | E24: =SUM(E21:E23) -> 316 | F24: =SUM(F21:F23) -> 2 | G24: =SUM(G21:G23) -> 108 | H24: =SUM(H21:H23) -> 56 | I24: =SUM(I21:I23) -> 780 | K24: =PRODUCT((F24+G24)/E24) -> 0.35 | L24: =PRODUCT(H24/E24) -> 0.18 | M24: =PRODUCT(I24/E24) -> 2.47 | N24: =PRODUCT(I24/O24) -> 48.8 % | O24: =SUM(O21:O23) -> 1599.975077 | P24: Kunnari | R24: 14.06. 2015 ViU - Lukko 1-2 (5-4, 3-4, 0-2) | AB24: 159. ottelu | AE24: 24 v 10 kk 26 pv
B26: Vuoden tulokas 2010 <> Vuoden lukkari 2013, 2019 <> Kultainen räpylä 2013
B28: Seurat | D28: IK = Ilmajoen Kisailijat (1921), kasvattajaseura
D29: Fera = Fera, Rauma (1958)
D30: Lukko = Fera, Rauma (1958)
D31: Virkiä = Lapuan Virkiä (1907)

Sheet Arvo-ottelut
B1: ITÄ - LÄNSI - KORTTI
B2: Jenna Kammi-Rahnasto | C2: 18.7.1990 Ilmajoki
B3: NAISET | C3: Itä - Länsi, tulos | D3: Joukkue | E3: Seura | G3: V | H3: T | I3: H | J3: Up. | K3: Lj. | L3: Palk. | M3: O | N3: K | O3: L | P3: T | Q3: KL | R3: 1 | S3: 2 | T3: 3 | U3: k | V3: KL-% | W3: Pelinjohtaja | X3: Yleisöä
B4: 19.07. 2014 Seinäjoki | C4: 1-2 (1-4, 1-4) | D4: Länsi | E4: Virkiä | G4: 1 | J4: L | K4: 9 | L4: I p | M4: 1 | Q4: 0/4 | R4: 0/2 | U4: 0/2 | V4: 0.0 % | W4: Jukka Liikala | X4: 3670
B5: 27.06. 2015 Hyvinkää | C5: 1-2 (1-4, 4-2, 0-1) | D5: Länsi | E5: Virkiä | G5: 1 | K5: 9 | L5: A | M5: 1 | Q5: 1/3 | R5: 0/2 | T5: 1/1 | V5: 0.0 % | W5: Sami Österlund | X5: 3197
B6: 02.07. 2016 Kouvola | C6: 0-2 (2-10, 1-7) | D6: Länsi | E6: Lukko | G6: 1 | J6: L | K6: 9 | M6: 1 | O6: 1 | Q6: 1/4 | R6: 0/3 | U6: 1/1 | V6: 25.0 % | W6: Antti Yli-Saunamäki | X6: 3267
B7: 01.07. 2017 Imatra | C7: 0-1 (2-2, 3-7) | D7: Länsi | E7: Lukko | G7: 1 | K7: jok | M7: 1 | Q7: 1/6 | R7: 1/3 | S7: 0/1 | T7: 0/1 | U7: 0/1 | V7: 16.7 % | W7: Jarkko Pokela | X7: 3171
B8: 30.06. 2018 Joensuu | C8: 1-2 (2-1, 3-4, 0-1) | D8: Länsi | E8: Virkiä | G8: 1 | K8: jok | L8: II p | M8: 1 | O8: 1 | Q8: 3/7 | R8: 2/2 | S8: 0/1 | T8: 0/2 | U8: 1/2 | V8: 42.9 % | W8: Sami Österlund | X8: 3287
B9: 06.07. 2019 Seinäjoki | C9: 0-1 (1-2, 4-4) | D9: Länsi | E9: Virkiä | G9: 1 | J9: L | K9: 9 | L9: I p | M9: 1 | Q9: 1/4 | R9: 0/2 | T9: 1/1 | U9: 0/1 | V9: 0.0 % | W9: Tomi Niskanen | X9: 3911
B10: Yhteensä | G10: =SUM(G4:G9) -> 6 | M10: =SUM(M4:M9) -> 6 | O10: =SUM(O4:O9) -> 2 | Q10: 7/28 | R10: 3/14 | S10: 0/2 | T10: 2/5 | U10: 2/7 | V10: 25.0 %
B12: Ikä ensimmäisessä ottelussa | C12: 24 v 0 kk 1 pv
B14: B - TYTÖT | C14: Itä - Länsi, tulos | D14: Joukkue | E14: Seura | G14: V | H14: T | I14: H | J14: Up. | K14: Lj. | L14: Palk. | M14: O | N14: K | O14: L | P14: T | Q14: KL | R14: 1 | S14: 2 | T14: 3 | U14: k | V14: KL-% | W14: Pelinjohtaja | X14: Yleisöä
B15: 28.06. 2009 Kuopio | C15: 2-1 (1-4, 4-3, 1-0) | D15: Länsi | E15: IK | I15: 1 | J15: L | K15: 8 | L15: II p | M15: 1 | Q15: 3/7 | S15: 2/3 | T15: 1/3 | U15: 0/1 | V15: 42.9 % | W15: Hannu Kalmari | X15: 2071
B17: LIITTO - LEHDISTÖ - KORTTI
B18: NAISET | C18: Tulos | D18: Joukkue | E18: Seura | G18: V | H18: T | I18: H | J18: Up. | K18: Lj. | L18: Palk. | M18: O | N18: K | O18: L | P18: T | Q18: KL | R18: 1 | S18: 2 | T18: 3 | U18: k | V18: KL-% | W18: Pelinjohtaja | X18: Yleisöä
B19: 18.06. 2014 Viinijärvi | C19: 1-2 (1-3, 3-1, 0-1) | D19: Liitto | E19: Virkiä | I19: 1 | J19: L | K19: 9 | M19: 1 | Q19: 3/6 | R19: 2/4 | S19: 1/2 | V19: 50.0 % | W19: Jukka Liikala | X19: 627
B20: Ikä ensimmäisessä ottelussa | C20: 23 v 11 kk 0 pv
